[Event "Early-Titled-Tuesday-Blitz-March-12-2024"]
[Site "Chess.com"]
[Date "2024.03.12"]
[Round "4"]
[White "rhwr"]
[Black "only_strong_moves"]
[Result "0-1"]
[WhiteElo "2278"]
[BlackElo "2538"]
[TimeControl "180+1"]
[EndTime "8:38:30 PDT"]
[Termination "only_strong_moves won on time"]

1. e4 {[%clk 0:02:59]} 1... c5 {[%clk 0:02:54.3]} 2. Nf3 {[%clk 0:02:59.1]} 2...
e6 {[%clk 0:02:51.9]} 3. d4 {[%clk 0:02:56.6]} 3... cxd4 {[%clk 0:02:52.8]} 4.
Nxd4 {[%clk 0:02:56.6]} 4... Nf6 {[%clk 0:02:53.6]} 5. Nc3 {[%clk 0:02:56.6]}
5... Bb4 {[%clk 0:02:54.3]} 6. Bd3 {[%clk 0:02:54.6]} 6... Bxc3+ {[%clk
0:02:52.4]} 7. bxc3 {[%clk 0:02:54.3]} 7... e5 {[%clk 0:02:53.3]} 8. Nf5 {[%clk
0:02:50.2]} 8... O-O {[%clk 0:02:53.4]} 9. O-O {[%clk 0:02:49.8]} 9... d5 {[%clk
0:02:52.9]} 10. Ng3 {[%clk 0:02:45.1]} 10... Nc6 {[%clk 0:02:39.9]} 11. exd5
{[%clk 0:02:43.1]} 11... Nxd5 {[%clk 0:02:40.8]} 12. Bb2 {[%clk 0:02:33.3]}
12... Nf4 {[%clk 0:02:39.6]} 13. c4 {[%clk 0:02:28.1]} 13... Qb6 {[%clk
0:02:35.2]} 14. Rb1 {[%clk 0:02:26.1]} 14... Qa5 {[%clk 0:02:27.2]} 15. Re1
{[%clk 0:02:15.4]} 15... Rd8 {[%clk 0:02:21.9]} 16. Qf3 {[%clk 0:02:05.8]} 16...
Nxd3 {[%clk 0:02:17.3]} 17. cxd3 {[%clk 0:02:04]} 17... Be6 {[%clk 0:02:18]} 18.
a3 {[%clk 0:01:57.5]} 18... Rac8 {[%clk 0:02:13.9]} 19. Nf5 {[%clk 0:01:54.6]}
19... Bxf5 {[%clk 0:02:07.2]} 20. Qxf5 {[%clk 0:01:54.7]} 20... Rc7 {[%clk
0:02:06.9]} 21. Re3 {[%clk 0:01:42.3]} 21... Rcd7 {[%clk 0:02:02.5]} 22. Rg3
{[%clk 0:01:38.5]} 22... g6 {[%clk 0:02:01.7]} 23. Qe4 {[%clk 0:01:32.4]} 23...
Qd2 {[%clk 0:01:59.5]} 24. Bxe5 {[%clk 0:00:58.2]} 24... Re8 {[%clk 0:01:46.9]}
25. Bf4 {[%clk 0:00:57]} 25... Rxe4 {[%clk 0:01:39.5]} 26. Bxd2 {[%clk
0:00:56.2]} 26... Re2 {[%clk 0:01:40.4]} 27. Bc3 {[%clk 0:00:49.6]} 27... Rc2
{[%clk 0:01:38.4]} 28. Bb2 {[%clk 0:00:44.2]} 28... Rd2 {[%clk 0:01:34.9]} 29.
Re3 {[%clk 0:00:39.6]} 29... Kf8 {[%clk 0:01:25.6]} 30. Kf1 {[%clk 0:00:15.1]}
30... R2xd3 {[%clk 0:01:24.1]} 31. Rxd3 {[%clk 0:00:04.9]} 31... Rxd3 {[%clk
0:01:25]} 32. Ke2 {[%clk 0:00:03.6]} 32... Rb3 {[%clk 0:01:24.1]} 33. Kd2 {[%clk
0:00:01.8]} 33... Na5 {[%clk 0:01:22.3]} 34. Kc2 {[%clk 0:00:01.2]} 34... Ke8
{[%clk 0:01:21.7]} 35. Re1+ {[%clk 0:00:01.1]} 35... Kd7 {[%clk 0:01:21.6]} 0-1

[Event "Early-Titled-Tuesday-Blitz-March-12-2024"]
[Site "Chess.com"]
[Date "2024.03.12"]
[Round "4"]
[White "MightyMike_009"]
[Black "vi_pranav"]
[Result "0-1"]
[WhiteElo "2864"]
[BlackElo "3043"]
[TimeControl "180+1"]
[EndTime "8:38:32 PDT"]
[Termination "vi_pranav won by resignation"]

1. d4 {[%clk 0:03:00.9]} 1... Nf6 {[%clk 0:03:00.6]} 2. c4 {[%clk 0:03:00.7]}
2... e6 {[%clk 0:03:01.3]} 3. Nc3 {[%clk 0:03:00.9]} 3... Bb4 {[%clk 0:03:01.9]}
4. e3 {[%clk 0:03:01.1]} 4... O-O {[%clk 0:03:02]} 5. Bd2 {[%clk 0:03:01.4]}
5... b6 {[%clk 0:03:01.9]} 6. Nf3 {[%clk 0:03:01.8]} 6... Bb7 {[%clk 0:03:02.3]}
7. Bd3 {[%clk 0:03:01.8]} 7... d6 {[%clk 0:03:01.9]} 8. Qc2 {[%clk 0:03:01.3]}
8... Nbd7 {[%clk 0:03:01.9]} 9. O-O {[%clk 0:02:59]} 9... Re8 {[%clk 0:03:01.2]}
10. Ng5 {[%clk 0:02:14.9]} 10... Nf8 {[%clk 0:02:58.6]} 11. a3 {[%clk
0:02:12.9]} 11... Bxc3 {[%clk 0:02:58.2]} 12. Bxc3 {[%clk 0:02:13.3]} 12... e5
{[%clk 0:02:57.3]} 13. d5 {[%clk 0:02:12.2]} 13... Bc8 {[%clk 0:02:55.7]} 14. f4
{[%clk 0:02:06.6]} 14... h6 {[%clk 0:02:11.5]} 15. fxe5 {[%clk 0:01:58.5]} 15...
dxe5 {[%clk 0:02:10.4]} 16. Ne4 {[%clk 0:01:52.3]} 16... Nxe4 {[%clk 0:02:10.1]}
17. Bxe4 {[%clk 0:01:53.2]} 17... Rb8 {[%clk 0:02:09.7]} 18. b4 {[%clk
0:01:50.8]} 18... Qg5 {[%clk 0:02:05.9]} 19. Qf2 {[%clk 0:01:48.7]} 19... f5
{[%clk 0:02:04.7]} 20. Bc2 {[%clk 0:01:43.1]} 20... Ng6 {[%clk 0:01:36.5]} 21.
Rae1 {[%clk 0:01:32.2]} 21... Rf8 {[%clk 0:01:34.5]} 22. Qg3 {[%clk 0:01:11.9]}
22... Qf6 {[%clk 0:00:48.3]} 23. Bxf5 {[%clk 0:01:04.7]} 23... Bxf5 {[%clk
0:00:30.6]} 24. e4 {[%clk 0:01:04.9]} 24... Nf4 {[%clk 0:00:31.1]} 25. exf5
{[%clk 0:01:00.5]} 25... Qxf5 {[%clk 0:00:31.1]} 26. Bxe5 {[%clk 0:00:55.9]}
26... Ne2+ {[%clk 0:00:30.9]} 0-1

[Event "Early-Titled-Tuesday-Blitz-March-12-2024"]
[Site "Chess.com"]
[Date "2024.03.12"]
[Round "4"]
[White "SharapovEvgeny"]
[Black "IndianSchoolOfSuffering"]
[Result "1-0"]
[WhiteElo "2525"]
[BlackElo "2396"]
[TimeControl "180+1"]
[EndTime "8:38:39 PDT"]
[Termination "SharapovEvgeny won by resignation"]

1. e4 {[%clk 0:03:00]} 1... c5 {[%clk 0:02:59.2]} 2. Nf3 {[%clk 0:02:59.8]} 2...
d6 {[%clk 0:02:59.1]} 3. d4 {[%clk 0:02:59.8]} 3... cxd4 {[%clk 0:02:59.7]} 4.
Nxd4 {[%clk 0:03:00.1]} 4... Nf6 {[%clk 0:02:59.5]} 5. f3 {[%clk 0:03:00.6]}
5... e5 {[%clk 0:02:56.7]} 6. Nb3 {[%clk 0:03:00.3]} 6... a6 {[%clk 0:02:54.4]}
7. c4 {[%clk 0:02:59.7]} 7... Be6 {[%clk 0:02:54]} 8. Nc3 {[%clk 0:02:59.7]}
8... Nbd7 {[%clk 0:02:53.6]} 9. Be3 {[%clk 0:02:59.5]} 9... Rc8 {[%clk
0:02:53.5]} 10. Nd5 {[%clk 0:02:59.3]} 10... Bxd5 {[%clk 0:02:53.6]} 11. cxd5
{[%clk 0:02:59.2]} 11... Be7 {[%clk 0:02:48.9]} 12. Be2 {[%clk 0:02:58.9]} 12...
O-O {[%clk 0:02:48.6]} 13. O-O {[%clk 0:02:58.8]} 13... a5 {[%clk 0:02:43.8]}
14. Bb5 {[%clk 0:02:53.1]} 14... Ne8 {[%clk 0:02:32.7]} 15. Bxd7 {[%clk
0:02:43.1]} 15... Qxd7 {[%clk 0:02:31.6]} 16. Nxa5 {[%clk 0:02:42.4]} 16... f5
{[%clk 0:02:30.2]} 17. Qb3 {[%clk 0:02:37.1]} 17... fxe4 {[%clk 0:02:26.6]} 18.
fxe4 {[%clk 0:02:37.1]} 18... Nf6 {[%clk 0:02:24.7]} 19. Nc4 {[%clk 0:02:20.1]}
19... Bd8 {[%clk 0:02:16.2]} 20. Bg5 {[%clk 0:02:07]} 20... Nxe4 {[%clk
0:02:00.3]} 21. Rxf8+ {[%clk 0:02:05.3]} 21... Kxf8 {[%clk 0:01:59]} 22. Rf1+
{[%clk 0:01:59.7]} 22... Kg8 {[%clk 0:01:53.9]} 23. Nxe5 {[%clk 0:01:52.1]}
23... Qe8 {[%clk 0:01:29.1]} 24. Bxd8 {[%clk 0:01:42.4]} 24... Rxd8 {[%clk
0:01:22.9]} 25. Qf3 {[%clk 0:01:30.3]} 25... Nf6 {[%clk 0:00:57.1]} 26. Ng4
{[%clk 0:01:24.3]} 26... Nxg4 {[%clk 0:00:51.4]} 27. Qxg4 {[%clk 0:01:24.1]}
27... Qe5 {[%clk 0:00:48.7]} 28. Qe6+ {[%clk 0:01:16.2]} 28... Qxe6 {[%clk
0:00:47.9]} 29. dxe6 {[%clk 0:01:16.6]} 29... Re8 {[%clk 0:00:48.1]} 30. Re1
{[%clk 0:01:16.9]} 30... Kf8 {[%clk 0:00:48.1]} 31. e7+ {[%clk 0:01:13.8]} 31...
Kf7 {[%clk 0:00:38.3]} 32. Kf2 {[%clk 0:01:13.4]} 32... d5 {[%clk 0:00:38.8]}
33. a4 {[%clk 0:01:10.2]} 33... d4 {[%clk 0:00:37.1]} 34. Re4 {[%clk 0:01:08.8]}
34... Kf6 {[%clk 0:00:10.8]} 35. Ke2 {[%clk 0:01:05.1]} 35... Kf5 {[%clk
0:00:08.7]} 36. Kd3 {[%clk 0:01:04.4]} 1-0

[Event "Early-Titled-Tuesday-Blitz-March-12-2024"]
[Site "Chess.com"]
[Date "2024.03.12"]
[Round "4"]
[White "Mikhail_Golubev"]
[Black "Msb2"]
[Result "0-1"]
[WhiteElo "2705"]
[BlackElo "3003"]
[TimeControl "180+1"]
[EndTime "8:38:43 PDT"]
[Termination "Msb2 won by resignation"]

1. e4 {[%clk 0:03:00.9]} 1... e6 {[%clk 0:03:00.4]} 2. d4 {[%clk 0:03:01]} 2...
d5 {[%clk 0:03:01.1]} 3. Nc3 {[%clk 0:03:01.3]} 3... Nf6 {[%clk 0:03:01.7]} 4.
Bg5 {[%clk 0:03:01]} 4... dxe4 {[%clk 0:03:02.4]} 5. Nxe4 {[%clk 0:03:00.2]}
5... Be7 {[%clk 0:03:03]} 6. Bxf6 {[%clk 0:03:00.4]} 6... Bxf6 {[%clk
0:03:03.9]} 7. Nf3 {[%clk 0:02:56.5]} 7... Nd7 {[%clk 0:03:04.5]} 8. Qd2 {[%clk
0:02:56.4]} 8... Be7 {[%clk 0:03:04.4]} 9. O-O-O {[%clk 0:02:55.3]} 9... O-O
{[%clk 0:03:05.1]} 10. Bd3 {[%clk 0:02:47.5]} 10... c5 {[%clk 0:03:03.7]} 11.
dxc5 {[%clk 0:02:43.1]} 11... Qc7 {[%clk 0:03:02.2]} 12. Rhe1 {[%clk 0:02:30]}
12... b6 {[%clk 0:02:59]} 13. c6 {[%clk 0:02:24.4]} 13... Qxc6 {[%clk 0:02:55]}
14. Neg5 {[%clk 0:02:18.1]} 14... Nf6 {[%clk 0:02:55.3]} 15. Ne5 {[%clk
0:02:02.3]} 15... Qc7 {[%clk 0:02:52.8]} 16. Bc4 {[%clk 0:01:46.7]} 16... b5
{[%clk 0:02:52.7]} 17. Bb3 {[%clk 0:01:45.4]} 17... a5 {[%clk 0:02:50.5]} 18.
Nexf7 {[%clk 0:01:35.2]} 18... Rxf7 {[%clk 0:02:46.4]} 19. Rxe6 {[%clk
0:01:34.7]} 19... Bxe6 {[%clk 0:02:21.2]} 20. Nxe6 {[%clk 0:01:20.1]} 20... Qb6
{[%clk 0:02:11.2]} 21. Ng5 {[%clk 0:01:14]} 21... Rf8 {[%clk 0:02:11.2]} 22. Qe2
{[%clk 0:00:50]} 22... a4 {[%clk 0:01:46.5]} 23. Bxf7+ {[%clk 0:00:45.4]} 23...
Rxf7 {[%clk 0:01:46.7]} 24. Nxf7 {[%clk 0:00:33.6]} 24... Kxf7 {[%clk
0:01:47.6]} 25. Qf3 {[%clk 0:00:33.2]} 25... Qc5 {[%clk 0:01:42.7]} 26. a3
{[%clk 0:00:29.6]} 26... b4 {[%clk 0:01:40.8]} 27. axb4 {[%clk 0:00:28.8]} 27...
Qxb4 {[%clk 0:01:41.7]} 28. h3 {[%clk 0:00:29.1]} 28... h6 {[%clk 0:01:35.8]}
29. Qd3 {[%clk 0:00:24.5]} 29... Kg8 {[%clk 0:01:25.6]} 30. Qd2 {[%clk
0:00:23.1]} 30... Qc4 {[%clk 0:01:24]} 31. Qd3 {[%clk 0:00:22.8]} 31... Qa2
{[%clk 0:01:20.7]} 32. c3 {[%clk 0:00:17.5]} 32... a3 {[%clk 0:01:19.4]} 33. Qb1
{[%clk 0:00:17]} 33... axb2+ {[%clk 0:01:19.3]} 34. Kc2 {[%clk 0:00:16.1]} 34...
Qa4+ {[%clk 0:01:19.6]} 35. Kxb2 {[%clk 0:00:14]} 35... Ne4 {[%clk 0:01:04]} 36.
Rd4 {[%clk 0:00:10.2]} 36... Qa3+ {[%clk 0:01:03.8]} 0-1

[Event "Early-Titled-Tuesday-Blitz-March-12-2024"]
[Site "Chess.com"]
[Date "2024.03.12"]
[Round "4"]
[White "sansanathalia"]
[Black "DrCeltic"]
[Result "1-0"]
[WhiteElo "2361"]
[BlackElo "2533"]
[TimeControl "180+1"]
[EndTime "8:38:45 PDT"]
[Termination "sansanathalia won by checkmate"]

1. e4 {[%clk 0:03:00.9]} 1... c5 {[%clk 0:02:59.5]} 2. Nf3 {[%clk 0:03:00.4]}
2... e6 {[%clk 0:03:00.1]} 3. Nc3 {[%clk 0:02:59.5]} 3... d6 {[%clk 0:03:00.6]}
4. d4 {[%clk 0:02:56.6]} 4... cxd4 {[%clk 0:03:01.5]} 5. Qxd4 {[%clk 0:02:56.2]}
5... a6 {[%clk 0:03:01.1]} 6. Bg5 {[%clk 0:02:55]} 6... Nf6 {[%clk 0:02:57.3]}
7. O-O-O {[%clk 0:02:55]} 7... Nc6 {[%clk 0:02:55.2]} 8. Qd2 {[%clk 0:02:54.6]}
8... h6 {[%clk 0:02:51.3]} 9. Bxf6 {[%clk 0:02:44]} 9... Qxf6 {[%clk 0:02:50.8]}
10. Na4 {[%clk 0:02:43.2]} 10... Qd8 {[%clk 0:02:46.5]} 11. h4 {[%clk
0:02:26.5]} 11... Be7 {[%clk 0:02:45.6]} 12. g4 {[%clk 0:02:20.2]} 12... b5
{[%clk 0:02:45.4]} 13. Nc3 {[%clk 0:01:59.2]} 13... Qa5 {[%clk 0:02:32.6]} 14.
Kb1 {[%clk 0:01:44.1]} 14... Bb7 {[%clk 0:02:32.2]} 15. Bg2 {[%clk 0:01:21.7]}
15... Rd8 {[%clk 0:02:08.7]} 16. g5 {[%clk 0:01:12.8]} 16... h5 {[%clk
0:02:07.5]} 17. Nd4 {[%clk 0:01:03.2]} 17... g6 {[%clk 0:01:56.8]} 18. f4 {[%clk
0:00:47.2]} 18... O-O {[%clk 0:01:53.1]} 19. Nxc6 {[%clk 0:00:35.7]} 19... Bxc6
{[%clk 0:01:52.9]} 20. Nd5 {[%clk 0:00:35.8]} 20... Qxd2 {[%clk 0:01:37.6]} 21.
Nxe7+ {[%clk 0:00:33.8]} 21... Kg7 {[%clk 0:01:37.9]} 22. Rxd2 {[%clk 0:00:34]}
22... Bb7 {[%clk 0:01:37.7]} 23. f5 {[%clk 0:00:30.9]} 23... exf5 {[%clk
0:01:33.1]} 24. exf5 {[%clk 0:00:30.8]} 24... Bxg2 {[%clk 0:01:29.7]} 25. Rxg2
{[%clk 0:00:26.1]} 25... gxf5 {[%clk 0:01:29.4]} 26. Nxf5+ {[%clk 0:00:26.1]}
26... Kg6 {[%clk 0:01:30]} 27. Ne7+ {[%clk 0:00:26.3]} 27... Kg7 {[%clk
0:01:30.2]} 28. Rd1 {[%clk 0:00:26.4]} 28... Kh7 {[%clk 0:01:26.4]} 29. Nd5
{[%clk 0:00:23.8]} 29... Kg6 {[%clk 0:01:25.4]} 30. Rf2 {[%clk 0:00:23.3]} 30...
Rfe8 {[%clk 0:01:23.8]} 31. Rf6+ {[%clk 0:00:23.1]} 31... Kg7 {[%clk 0:01:24.3]}
32. Nf4 {[%clk 0:00:23.2]} 32... Re7 {[%clk 0:01:22.3]} 33. Nxh5+ {[%clk
0:00:22]} 33... Kh7 {[%clk 0:01:22.7]} 34. Rh6+ {[%clk 0:00:21.2]} 34... Kg8
{[%clk 0:01:21.7]} 35. Nf6+ {[%clk 0:00:20.5]} 35... Kg7 {[%clk 0:01:21.9]} 36.
h5 {[%clk 0:00:20.4]} 36... Rh8 {[%clk 0:01:15]} 37. Rxh8 {[%clk 0:00:20]} 37...
Kxh8 {[%clk 0:01:15.9]} 38. b3 {[%clk 0:00:19.8]} 38... a5 {[%clk 0:01:15.7]}
39. Rxd6 {[%clk 0:00:19.9]} 39... Kg7 {[%clk 0:01:12.3]} 40. Rd8 {[%clk
0:00:19.9]} 40... Re1+ {[%clk 0:01:06.2]} 41. Kb2 {[%clk 0:00:19.5]} 41... b4
{[%clk 0:01:07.1]} 42. Rg8# {[%clk 0:00:19.1]} 1-0

[Event "Early-Titled-Tuesday-Blitz-March-12-2024"]
[Site "Chess.com"]
[Date "2024.03.12"]
[Round "4"]
[White "TigrVShlyape"]
[Black "CSB7"]
[Result "1/2-1/2"]
[WhiteElo "2913"]
[BlackElo "2784"]
[TimeControl "180+1"]
[EndTime "8:38:50 PDT"]
[Termination "Game drawn by repetition"]

1. d4 {[%clk 0:03:00.9]} 1... d5 {[%clk 0:03:00]} 2. Bf4 {[%clk 0:02:59.9]} 2...
c5 {[%clk 0:02:54.5]} 3. e3 {[%clk 0:02:58.4]} 3... Nc6 {[%clk 0:02:54.7]} 4. c3
{[%clk 0:02:58]} 4... Qb6 {[%clk 0:02:54.9]} 5. Qb3 {[%clk 0:02:56]} 5... c4
{[%clk 0:02:55.2]} 6. Qc2 {[%clk 0:02:55.8]} 6... e5 {[%clk 0:02:54.7]} 7. Bxe5
{[%clk 0:02:52.4]} 7... Bf5 {[%clk 0:02:37.4]} 8. Qc1 {[%clk 0:02:50.7]} 8...
Nxe5 {[%clk 0:02:37.3]} 9. dxe5 {[%clk 0:02:50.7]} 9... f6 {[%clk 0:02:38]} 10.
e6 {[%clk 0:02:51]} 10... Bxe6 {[%clk 0:02:28.8]} 11. Nd2 {[%clk 0:02:46.1]}
11... Nh6 {[%clk 0:02:25.3]} 12. Ne2 {[%clk 0:02:43.2]} 12... Bc5 {[%clk
0:02:22.8]} 13. Nf3 {[%clk 0:02:42.2]} 13... O-O {[%clk 0:02:06.2]} 14. Ned4
{[%clk 0:02:37.5]} 14... Rae8 {[%clk 0:01:55.7]} 15. Be2 {[%clk 0:02:37.2]}
15... Nf5 {[%clk 0:01:42.2]} 16. O-O {[%clk 0:02:25.4]} 16... Nxd4 {[%clk
0:01:38.3]} 17. Nxd4 {[%clk 0:02:25.2]} 17... Bxd4 {[%clk 0:01:33]} 18. exd4
{[%clk 0:02:24.4]} 18... Qd6 {[%clk 0:01:05.1]} 19. Re1 {[%clk 0:02:22.3]} 19...
Re7 {[%clk 0:01:02.4]} 20. Bf3 {[%clk 0:02:20.9]} 20... Rfe8 {[%clk 0:01:01.2]}
21. Qd2 {[%clk 0:02:19.6]} 21... h6 {[%clk 0:00:57.7]} 22. Re3 {[%clk
0:02:15.4]} 22... Bf7 {[%clk 0:00:54.9]} 23. Rae1 {[%clk 0:02:14.5]} 23... b5
{[%clk 0:00:47.5]} 24. a3 {[%clk 0:02:13.7]} 24... a5 {[%clk 0:00:46.8]} 25. g3
{[%clk 0:02:13.2]} 25... Rxe3 {[%clk 0:00:46.4]} 26. Rxe3 {[%clk 0:02:12.7]}
26... Rxe3 {[%clk 0:00:46.5]} 27. Qxe3 {[%clk 0:02:12.8]} 27... b4 {[%clk
0:00:42.4]} 28. axb4 {[%clk 0:02:12.3]} 28... axb4 {[%clk 0:00:43.3]} 29. h4
{[%clk 0:02:09.8]} 29... Kf8 {[%clk 0:00:30.8]} 30. Qe1 {[%clk 0:01:54.3]} 30...
bxc3 {[%clk 0:00:29]} 31. bxc3 {[%clk 0:01:53.8]} 31... Qa3 {[%clk 0:00:28]} 32.
Kg2 {[%clk 0:01:48]} 32... g5 {[%clk 0:00:27.4]} 33. hxg5 {[%clk 0:01:43.7]}
33... hxg5 {[%clk 0:00:28.3]} 34. Qe3 {[%clk 0:01:39.3]} 34... Kg7 {[%clk
0:00:25.4]} 35. Bg4 {[%clk 0:01:36.8]} 35... Kf8 {[%clk 0:00:23.9]} 36. Bf5
{[%clk 0:01:36.4]} 36... Qe7 {[%clk 0:00:22.4]} 37. Qf3 {[%clk 0:01:28]} 37...
Qa3 {[%clk 0:00:21.9]} 38. Qe3 {[%clk 0:01:23.1]} 38... Qe7 {[%clk 0:00:21.1]}
39. Qxe7+ {[%clk 0:01:08.4]} 39... Kxe7 {[%clk 0:00:21.1]} 40. Kf3 {[%clk
0:01:07.6]} 40... Kd6 {[%clk 0:00:20.3]} 41. Ke3 {[%clk 0:01:06.8]} 41... Bg8
{[%clk 0:00:18.7]} 42. f4 {[%clk 0:01:06.7]} 42... Bf7 {[%clk 0:00:18.5]} 43.
Kf3 {[%clk 0:01:06.1]} 43... Bh5+ {[%clk 0:00:18.4]} 44. Ke3 {[%clk 0:01:04.2]}
44... Bf7 {[%clk 0:00:18.3]} 45. Kf3 {[%clk 0:01:04.4]} 45... Bh5+ {[%clk
0:00:18.3]} 46. Ke3 {[%clk 0:01:04.7]} 46... Bf7 {[%clk 0:00:18.7]} 1/2-1/2

[Event "Early-Titled-Tuesday-Blitz-March-12-2024"]
[Site "Chess.com"]
[Date "2024.03.12"]
[Round "4"]
[White "bubeliang"]
[Black "Actuary44"]
[Result "1-0"]
[WhiteElo "2806"]
[BlackElo "2527"]
[TimeControl "180+1"]
[EndTime "8:38:51 PDT"]
[Termination "bubeliang won by resignation"]

1. d4 {[%clk 0:03:00.9]} 1... Nf6 {[%clk 0:02:59.9]} 2. Nc3 {[%clk 0:03:00.7]}
2... g6 {[%clk 0:03:00.5]} 3. Bf4 {[%clk 0:02:57.3]} 3... d6 {[%clk 0:03:00.3]}
4. e3 {[%clk 0:02:56.8]} 4... Bg7 {[%clk 0:03:00.9]} 5. h4 {[%clk 0:02:57.1]}
5... O-O {[%clk 0:03:01.5]} 6. h5 {[%clk 0:02:57.4]} 6... Nxh5 {[%clk
0:02:53.9]} 7. Rxh5 {[%clk 0:02:56.7]} 7... gxh5 {[%clk 0:02:54.8]} 8. Qxh5
{[%clk 0:02:56.8]} 8... e5 {[%clk 0:02:54.7]} 9. dxe5 {[%clk 0:02:53]} 9... dxe5
{[%clk 0:02:55.6]} 10. Bxe5 {[%clk 0:02:53.3]} 10... Bxe5 {[%clk 0:02:51.1]} 11.
Qxe5 {[%clk 0:02:54.2]} 11... Qd6 {[%clk 0:02:48.9]} 12. Qxd6 {[%clk 0:02:42.9]}
12... cxd6 {[%clk 0:02:49.8]} 13. Nb5 {[%clk 0:02:43.8]} 13... Nc6 {[%clk
0:02:45.9]} 14. Nxd6 {[%clk 0:02:43.8]} 14... Be6 {[%clk 0:02:43.2]} 15. O-O-O
{[%clk 0:02:40.2]} 15... b6 {[%clk 0:02:29.4]} 16. Nf3 {[%clk 0:02:38.5]} 16...
Rfd8 {[%clk 0:02:28]} 17. Bd3 {[%clk 0:02:30.4]} 17... Rxd6 {[%clk 0:02:05]} 18.
Bxh7+ {[%clk 0:02:29.5]} 18... Kxh7 {[%clk 0:02:05.9]} 19. Rxd6 {[%clk
0:02:30.1]} 19... Nd8 {[%clk 0:01:49.8]} 20. Nd4 {[%clk 0:02:17.2]} 20... Kg7
{[%clk 0:01:43.4]} 21. f4 {[%clk 0:02:15.9]} 21... Kf6 {[%clk 0:01:22.4]} 22. e4
{[%clk 0:02:06.7]} 22... Ke7 {[%clk 0:01:18.7]} 23. e5 {[%clk 0:02:06.1]} 23...
f5 {[%clk 0:01:02.9]} 24. g4 {[%clk 0:02:00.7]} 24... fxg4 {[%clk 0:00:55.6]}
25. f5 {[%clk 0:02:01.6]} 25... Bxa2 {[%clk 0:00:19.8]} 26. b3 {[%clk
0:01:45.3]} 26... g3 {[%clk 0:00:17.9]} 27. Rg6 {[%clk 0:01:43.4]} 27... Nf7
{[%clk 0:00:15.4]} 28. Nc6+ {[%clk 0:01:40.6]} 28... Kf8 {[%clk 0:00:14.8]} 29.
e6 {[%clk 0:01:37.1]} 29... Bxb3 {[%clk 0:00:13]} 30. cxb3 {[%clk 0:01:35.1]}
30... Nh8 {[%clk 0:00:12.7]} 31. Rxg3 {[%clk 0:01:30.7]} 31... Rc8 {[%clk
0:00:12.4]} 32. Rc3 {[%clk 0:01:31.3]} 32... a5 {[%clk 0:00:10.6]} 33. Kb2
{[%clk 0:01:30.8]} 33... b5 {[%clk 0:00:10.8]} 34. f6 {[%clk 0:01:30.7]} 34...
Ng6 {[%clk 0:00:10.6]} 35. e7+ {[%clk 0:01:26.6]} 35... Ke8 {[%clk 0:00:07.3]}
36. f7+ {[%clk 0:01:26.6]} 36... Kxf7 {[%clk 0:00:06.1]} 37. Nd8+ {[%clk
0:01:27]} 37... Kxe7 {[%clk 0:00:05.3]} 38. Rxc8 {[%clk 0:01:27.6]} 38... Kd7
{[%clk 0:00:04.8]} 39. Ra8 {[%clk 0:01:27.7]} 39... a4 {[%clk 0:00:04.7]} 40.
bxa4 {[%clk 0:01:28.4]} 40... bxa4 {[%clk 0:00:05.6]} 41. Nf7 {[%clk 0:01:28.4]}
41... Ke7 {[%clk 0:00:05.3]} 42. Ng5 {[%clk 0:01:28.5]} 42... Kf6 {[%clk
0:00:05.1]} 43. Ne4+ {[%clk 0:01:29.1]} 43... Ke5 {[%clk 0:00:05.3]} 44. Nc3
{[%clk 0:01:30]} 44... Nf4 {[%clk 0:00:04.9]} 45. Rxa4 {[%clk 0:01:29.5]} 45...
Nd3+ {[%clk 0:00:04.8]} 46. Kc2 {[%clk 0:01:30]} 46... Nc5 {[%clk 0:00:04.6]}
47. Rc4 {[%clk 0:01:29.5]} 47... Kd6 {[%clk 0:00:04]} 48. Ne4+ {[%clk
0:01:29.1]} 48... Kd5 {[%clk 0:00:01.5]} 49. Rxc5+ {[%clk 0:01:29]} 1-0

[Event "Early-Titled-Tuesday-Blitz-March-12-2024"]
[Site "Chess.com"]
[Date "2024.03.12"]
[Round "4"]
[White "venturov"]
[Black "MikeWizard"]
[Result "1-0"]
[WhiteElo "2485"]
[BlackElo "2080"]
[TimeControl "180+1"]
[EndTime "8:38:52 PDT"]
[Termination "venturov won by resignation"]

1. e4 {[%clk 0:03:00.9]} 1... d6 {[%clk 0:02:59.7]} 2. Nf3 {[%clk 0:03:00.5]}
2... e5 {[%clk 0:02:56.9]} 3. Bc4 {[%clk 0:03:00.1]} 3... Be7 {[%clk 0:02:51.8]}
4. d4 {[%clk 0:02:58.5]} 4... Nd7 {[%clk 0:02:50]} 5. O-O {[%clk 0:02:53.8]}
5... Ngf6 {[%clk 0:02:49.4]} 6. Re1 {[%clk 0:02:53.6]} 6... c6 {[%clk
0:02:45.5]} 7. a4 {[%clk 0:02:53.5]} 7... Qc7 {[%clk 0:02:45]} 8. a5 {[%clk
0:02:50.6]} 8... h6 {[%clk 0:02:43.9]} 9. h3 {[%clk 0:02:40.5]} 9... g5 {[%clk
0:02:41.5]} 10. Nbd2 {[%clk 0:02:37.6]} 10... Nf8 {[%clk 0:02:41.1]} 11. Nf1
{[%clk 0:02:36.9]} 11... Ng6 {[%clk 0:02:40.9]} 12. Ng3 {[%clk 0:02:35.6]} 12...
Nf4 {[%clk 0:02:39.4]} 13. c3 {[%clk 0:02:28.7]} 13... Bd7 {[%clk 0:02:38.5]}
14. Qb3 {[%clk 0:02:23.4]} 14... Rh7 {[%clk 0:02:25.8]} 15. dxe5 {[%clk
0:02:21.2]} 15... dxe5 {[%clk 0:02:24.5]} 16. Bxf4 {[%clk 0:02:21.9]} 16... gxf4
{[%clk 0:02:23.4]} 17. Nf5 {[%clk 0:02:21.1]} 17... O-O-O {[%clk 0:02:08.5]} 18.
Bxf7 {[%clk 0:02:20.7]} 18... Bxf5 {[%clk 0:01:58.7]} 19. exf5 {[%clk
0:02:19.8]} 19... Bc5 {[%clk 0:01:52.7]} 20. Be6+ {[%clk 0:02:14.2]} 20... Kb8
{[%clk 0:01:50.5]} 21. Nxe5 {[%clk 0:02:11.9]} 21... Rg7 {[%clk 0:01:46.3]} 22.
a6 {[%clk 0:02:08.2]} 22... Rd2 {[%clk 0:01:20.8]} 23. Qxb7+ {[%clk 0:01:48.3]}
23... Qxb7 {[%clk 0:01:19.3]} 24. axb7 {[%clk 0:01:49.2]} 24... Bxf2+ {[%clk
0:01:17.5]} 25. Kf1 {[%clk 0:01:41.9]} 25... Bxe1 {[%clk 0:01:16.8]} 26. Bc8
{[%clk 0:01:25.6]} 26... Rxb7 {[%clk 0:01:02.3]} 27. Bxb7 {[%clk 0:01:24.2]}
27... Kxb7 {[%clk 0:01:02.4]} 28. Rxe1 {[%clk 0:01:14.6]} 28... Rxb2 {[%clk
0:00:59.7]} 29. Nxc6 {[%clk 0:01:01.5]} 29... Kxc6 {[%clk 0:00:57.2]} 30. Re6+
{[%clk 0:01:00.8]} 30... Kb5 {[%clk 0:00:53.5]} 31. Rxf6 {[%clk 0:01:01.7]}
31... a5 {[%clk 0:00:50.6]} 32. Rf8 {[%clk 0:00:51.4]} 32... Ka6 {[%clk
0:00:37.5]} 33. f6 {[%clk 0:00:49.1]} 33... Rb7 {[%clk 0:00:29.4]} 34. f7 {[%clk
0:00:48]} 34... Kb5 {[%clk 0:00:27.8]} 35. c4+ {[%clk 0:00:40.5]} 35... Kb4
{[%clk 0:00:27.6]} 36. c5 {[%clk 0:00:40.2]} 36... a4 {[%clk 0:00:24.1]} 37. c6
{[%clk 0:00:40.4]} 37... Rc7 {[%clk 0:00:24.3]} 38. Rb8+ {[%clk 0:00:39.8]}
38... Kc5 {[%clk 0:00:21.2]} 39. f8=Q+ {[%clk 0:00:39.9]} 1-0